[Event "*** Titled Tuesday Blitz"]
[Site "Chess.com"]
[Date "2018.01.02"]
[Round "5"]
[White "TST2014"]
[Black "Adham_Fawzy"]
[Result "0-1"]
[WhiteElo "2300"]
[BlackElo "2422"]
[TimeControl "180+2"]
[EndTime "14:08:24 PST"]
[Termination "Adham_Fawzy won on time"]

1. d4 {[%clk 0:03:01.6]} 1... Nf6 {[%clk 0:03:00.4]} 2. c4 {[%clk 0:02:59.8]}
2... e6 {[%clk 0:03:01.4]} 3. Nf3 {[%clk 0:03:00.2]} 3... Bb4+ {[%clk
0:03:01.7]} 4. Nc3 {[%clk 0:02:58.8]} 4... O-O {[%clk 0:02:59]} 5. e3 {[%clk
0:02:58.8]} 5... c5 {[%clk 0:02:59.8]} 6. Bd3 {[%clk 0:02:59.6]} 6... d5 {[%clk
0:03:00.7]} 7. O-O {[%clk 0:03:00.1]} 7... Nc6 {[%clk 0:03:00.5]} 8. a3 {[%clk
0:03:00.6]} 8... Bxc3 {[%clk 0:03:01.6]} 9. bxc3 {[%clk 0:03:01.7]} 9... dxc4
{[%clk 0:03:02.9]} 10. Bxc4 {[%clk 0:03:02.9]} 10... Qc7 {[%clk 0:03:04]} 11. h3
{[%clk 0:02:59.7]} 11... b6 {[%clk 0:03:01.8]} 12. Bb2 {[%clk 0:02:58]} 12...
Bb7 {[%clk 0:02:59.5]} 13. Ba2 {[%clk 0:02:54.2]} 13... Na5 {[%clk 0:02:57.5]}
14. Qe2 {[%clk 0:02:46.6]} 14... Ne4 {[%clk 0:02:43.8]} 15. c4 {[%clk
0:02:43.1]} 15... Rad8 {[%clk 0:02:32.6]} 16. Rac1 {[%clk 0:02:39.1]} 16... f5
{[%clk 0:02:32.6]} 17. Rfd1 {[%clk 0:02:33.4]} 17... Qe7 {[%clk 0:01:47.2]} 18.
d5 {[%clk 0:02:23.4]} 18... Rd7 {[%clk 0:01:36]} 19. Ne5 {[%clk 0:02:22.4]}
19... Rd6 {[%clk 0:01:36.8]} 20. f3 {[%clk 0:02:16.4]} 20... Nf6 {[%clk
0:01:33.1]} 21. e4 {[%clk 0:02:11.5]} 21... fxe4 {[%clk 0:01:30.9]} 22. fxe4
{[%clk 0:02:12.3]} 22... exd5 {[%clk 0:01:25.7]} 23. cxd5 {[%clk 0:02:09.8]}
23... Kh8 {[%clk 0:01:14]} 24. Rf1 {[%clk 0:02:03.3]} 24... Re8 {[%clk
0:01:13.7]} 25. Rce1 {[%clk 0:02:02.4]} 25... a6 {[%clk 0:01:07]} 26. Nc4 {[%clk
0:02:02.7]} 26... Nxc4 {[%clk 0:01:06.2]} 27. Bxc4 {[%clk 0:01:59.3]} 27... b5
{[%clk 0:01:07.2]} 28. e5 {[%clk 0:01:57.7]} 28... bxc4 {[%clk 0:01:03.7]} 29.
exd6 {[%clk 0:01:51.5]} 29... Qxe2 {[%clk 0:01:01.6]} 30. Rxe2 {[%clk
0:01:52.6]} 30... Rxe2 {[%clk 0:01:03.2]} 31. Bxf6 {[%clk 0:01:49.4]} 31... Bxd5
{[%clk 0:01:01]} 32. Rf5 {[%clk 0:01:39.6]} 32... Be6 {[%clk 0:00:53.7]} 33.
Rxc5 {[%clk 0:01:36.6]} 33... gxf6 {[%clk 0:00:52.4]} 34. d7 {[%clk 0:01:30.1]}
34... Bxd7 {[%clk 0:00:52]} 35. Rxc4 {[%clk 0:01:31.6]} 35... Bb5 {[%clk
0:00:51.1]} 36. Rc7 {[%clk 0:01:29.6]} 36... Rd2 {[%clk 0:00:48.9]} 37. Kh2
{[%clk 0:01:26.2]} 37... Kg8 {[%clk 0:00:49.2]} 38. Kg3 {[%clk 0:01:25.8]} 38...
Bf1 {[%clk 0:00:49.2]} 39. Kf4 {[%clk 0:01:22.1]} 39... Rxg2 {[%clk 0:00:50.2]}
40. Kf5 {[%clk 0:01:22.2]} 40... Rf2+ {[%clk 0:00:51.2]} 41. Ke6 {[%clk
0:01:22.6]} 41... Bxh3+ {[%clk 0:00:51.2]} 42. Kd6 {[%clk 0:01:22.9]} 42... Rd2+
{[%clk 0:00:52]} 43. Ke7 {[%clk 0:01:19.3]} 43... Rd7+ {[%clk 0:00:48.6]} 44.
Rxd7 {[%clk 0:01:16.7]} 44... Bxd7 {[%clk 0:00:50.5]} 45. Kxf6 {[%clk
0:01:18.2]} 45... Kf8 {[%clk 0:00:49.4]} 46. Kg5 {[%clk 0:01:16.9]} 46... Kg7
{[%clk 0:00:49.6]} 47. Kh5 {[%clk 0:01:18.1]} 47... Be6 {[%clk 0:00:49.7]} 48.
Kg5 {[%clk 0:01:18.8]} 48... h6+ {[%clk 0:00:51]} 49. Kh5 {[%clk 0:01:19.7]}
49... Kh7 {[%clk 0:00:52.3]} 50. Kh4 {[%clk 0:01:20.8]} 50... Kg6 {[%clk
0:00:53.2]} 51. Kg3 {[%clk 0:01:22]} 51... h5 {[%clk 0:00:54.3]} 52. Kh4 {[%clk
0:01:22.9]} 52... Kh6 {[%clk 0:00:55.4]} 53. Kg3 {[%clk 0:01:23.8]} 53... Kg5
{[%clk 0:00:56.6]} 0-1

[Event "*** Titled Tuesday Blitz"]
[Site "Chess.com"]
[Date "2018.01.02"]
[Round "5"]
[White "ramses135"]
[Black "EndgameGrinder"]
[Result "1/2-1/2"]
[WhiteElo "2382"]
[BlackElo "2446"]
[TimeControl "180+2"]
[EndTime "14:08:33 PST"]
[Termination "Game drawn - insufficient material"]

1. e4 {[%clk 0:02:38]} 1... c5 {[%clk 0:02:57.7]} 2. Nf3 {[%clk 0:02:34.9]} 2...
e6 {[%clk 0:02:53.7]} 3. c3 {[%clk 0:02:35.8]} 3... Nf6 {[%clk 0:02:54]} 4. e5
{[%clk 0:02:37]} 4... Nd5 {[%clk 0:02:55.6]} 5. d4 {[%clk 0:02:38.9]} 5... cxd4
{[%clk 0:02:55]} 6. cxd4 {[%clk 0:02:40.8]} 6... d6 {[%clk 0:02:56]} 7. Bc4
{[%clk 0:02:39.6]} 7... Be7 {[%clk 0:02:55.1]} 8. O-O {[%clk 0:02:40.3]} 8...
O-O {[%clk 0:02:55.1]} 9. Nc3 {[%clk 0:02:33.3]} 9... Nxc3 {[%clk 0:02:50.6]}
10. bxc3 {[%clk 0:02:35.2]} 10... b6 {[%clk 0:02:51.8]} 11. Qe2 {[%clk
0:02:31.2]} 11... a5 {[%clk 0:02:44.6]} 12. Re1 {[%clk 0:02:27.6]} 12... Ba6
{[%clk 0:02:45.2]} 13. Bxa6 {[%clk 0:02:25]} 13... Nxa6 {[%clk 0:02:45.5]} 14.
Rb1 {[%clk 0:02:23.3]} 14... Nb8 {[%clk 0:02:35.7]} 15. d5 {[%clk 0:01:52.3]}
15... exd5 {[%clk 0:02:30.5]} 16. e6 {[%clk 0:01:53.3]} 16... Nc6 {[%clk
0:02:25.5]} 17. Qb5 {[%clk 0:01:53.5]} 17... Ne5 {[%clk 0:02:22.1]} 18. Nd4
{[%clk 0:01:24.8]} 18... Qc8 {[%clk 0:02:02.4]} 19. Qxd5 {[%clk 0:01:18.2]}
19... Qc5 {[%clk 0:01:53.8]} 20. exf7+ {[%clk 0:01:08.6]} 20... Kh8 {[%clk
0:01:48.5]} 21. Qxc5 {[%clk 0:00:47.4]} 21... bxc5 {[%clk 0:01:48]} 22. Nf5
{[%clk 0:00:30.9]} 22... Rxf7 {[%clk 0:01:45.9]} 23. Nxe7 {[%clk 0:00:31.1]}
23... Rxe7 {[%clk 0:01:47.2]} 24. Bg5 {[%clk 0:00:29.5]} 24... Ree8 {[%clk
0:01:42.3]} 25. Kf1 {[%clk 0:00:27.6]} 25... h6 {[%clk 0:01:42.7]} 26. Bf4
{[%clk 0:00:28.1]} 26... Nc4 {[%clk 0:01:40.6]} 27. Rxe8+ {[%clk 0:00:24.2]}
27... Rxe8 {[%clk 0:01:40.9]} 28. Re1 {[%clk 0:00:21.7]} 28... Rxe1+ {[%clk
0:01:21.2]} 29. Kxe1 {[%clk 0:00:23.6]} 29... Kg8 {[%clk 0:01:21.7]} 30. Ke2
{[%clk 0:00:24.7]} 30... Kf7 {[%clk 0:01:22.6]} 31. Kd3 {[%clk 0:00:25.5]} 31...
d5 {[%clk 0:01:23.6]} 32. h4 {[%clk 0:00:17.7]} 32... h5 {[%clk 0:01:23]} 33. f3
{[%clk 0:00:19]} 33... Ke6 {[%clk 0:01:23.1]} 34. g4 {[%clk 0:00:20]} 34... g6
{[%clk 0:01:24.7]} 35. Bg5 {[%clk 0:00:20.1]} 35... hxg4 {[%clk 0:01:19.1]} 36.
fxg4 {[%clk 0:00:22]} 36... Ne5+ {[%clk 0:01:20.7]} 37. Kc2 {[%clk 0:00:21.5]}
37... Nxg4 {[%clk 0:01:22.6]} 38. Kb3 {[%clk 0:00:22.8]} 38... Ne5 {[%clk
0:01:18.6]} 39. Ka4 {[%clk 0:00:23.3]} 39... Nc4 {[%clk 0:01:15.3]} 40. Kb5
{[%clk 0:00:24.3]} 40... Nd6+ {[%clk 0:00:34]} 41. Kxc5 {[%clk 0:00:19.1]} 41...
Ne4+ {[%clk 0:00:35.5]} 42. Kd4 {[%clk 0:00:15.8]} 42... Nxg5 {[%clk 0:00:16.4]}
43. hxg5 {[%clk 0:00:17.7]} 43... Kd6 {[%clk 0:00:17.8]} 44. c4 {[%clk
0:00:17.9]} 44... dxc4 {[%clk 0:00:15.6]} 45. Kxc4 {[%clk 0:00:19.8]} 45... Ke5
{[%clk 0:00:15.1]} 46. Kb5 {[%clk 0:00:20.1]} 46... Kf5 {[%clk 0:00:16.6]} 47.
Kxa5 {[%clk 0:00:21.5]} 47... Kxg5 {[%clk 0:00:18.5]} 48. Kb5 {[%clk 0:00:15.9]}
48... Kf5 {[%clk 0:00:20.4]} 49. a4 {[%clk 0:00:17]} 49... g5 {[%clk 0:00:22.3]}
50. a5 {[%clk 0:00:18.8]} 50... g4 {[%clk 0:00:24.2]} 51. a6 {[%clk 0:00:20.7]}
51... g3 {[%clk 0:00:26.1]} 52. a7 {[%clk 0:00:22.6]} 52... g2 {[%clk 0:00:28]}
53. a8=Q {[%clk 0:00:23.9]} 53... g1=Q {[%clk 0:00:29.9]} 54. Qd5+ {[%clk
0:00:24.7]} 54... Kf4 {[%clk 0:00:29.7]} 55. Qc4+ {[%clk 0:00:24.9]} 55... Kf3
{[%clk 0:00:30.1]} 56. Qc5 {[%clk 0:00:26.8]} 56... Qb1+ {[%clk 0:00:29.8]} 57.
Qb4 {[%clk 0:00:26.6]} 57... Qxb4+ {[%clk 0:00:30.8]} 58. Kxb4 {[%clk
0:00:28.5]} 1/2-1/2

[Event "*** Titled Tuesday Blitz"]
[Site "Chess.com"]
[Date "2018.01.02"]
[Round "5"]
[White "MatthewG-p4p"]
[Black "plouarzel"]
[Result "1-0"]
[WhiteElo "2613"]
[BlackElo "2347"]
[TimeControl "180+2"]
[EndTime "14:08:47 PST"]
[Termination "MatthewG-p4p won by resignation"]

1. f4 {[%clk 0:02:57.6]} 1... c5 {[%clk 0:02:58.6]} 2. Nf3 {[%clk 0:02:53.1]}
2... Nc6 {[%clk 0:02:59.4]} 3. g3 {[%clk 0:02:53.7]} 3... g6 {[%clk 0:02:59.9]}
4. Bg2 {[%clk 0:02:55.3]} 4... Bg7 {[%clk 0:03:01.3]} 5. d3 {[%clk 0:02:55.4]}
5... d6 {[%clk 0:02:59.3]} 6. Nc3 {[%clk 0:02:55.9]} 6... Nf6 {[%clk 0:02:58.6]}
7. O-O {[%clk 0:02:55.4]} 7... O-O {[%clk 0:02:55.8]} 8. e4 {[%clk 0:02:56.7]}
8... Rb8 {[%clk 0:02:56.7]} 9. a4 {[%clk 0:02:56.6]} 9... b6 {[%clk 0:02:48.5]}
10. h3 {[%clk 0:02:57.2]} 10... Nd7 {[%clk 0:02:39.5]} 11. g4 {[%clk 0:02:55.1]}
11... Nd4 {[%clk 0:02:39.6]} 12. Be3 {[%clk 0:02:53.8]} 12... a6 {[%clk
0:02:20.8]} 13. Bxd4 {[%clk 0:02:47.1]} 13... cxd4 {[%clk 0:02:18.6]} 14. Ne2
{[%clk 0:02:47.6]} 14... e5 {[%clk 0:02:10.6]} 15. f5 {[%clk 0:02:48]} 15... f6
{[%clk 0:02:08]} 16. h4 {[%clk 0:02:46.2]} 16... Bb7 {[%clk 0:01:59.6]} 17. Ng3
{[%clk 0:02:46.2]} 17... d5 {[%clk 0:01:21.8]} 18. Qe2 {[%clk 0:02:43.3]} 18...
dxe4 {[%clk 0:01:12.7]} 19. Nxe4 {[%clk 0:02:44.2]} 19... Qc7 {[%clk 0:01:07.4]}
20. Rf2 {[%clk 0:02:36.6]} 20... Nc5 {[%clk 0:01:04]} 21. Nfd2 {[%clk
0:02:25.6]} 21... Bh6 {[%clk 0:00:37.5]} 22. g5 {[%clk 0:02:11.3]} 22... fxg5
{[%clk 0:00:32.4]} 23. hxg5 {[%clk 0:02:07.2]} 23... Nxe4 {[%clk 0:00:22]} 24.
Nxe4 {[%clk 0:01:50.7]} 24... Bxe4 {[%clk 0:00:22.7]} 25. gxh6 {[%clk
0:01:48.5]} 25... Bxg2 {[%clk 0:00:20.5]} 26. Kxg2 {[%clk 0:01:46.7]} 26... Qc6+
{[%clk 0:00:19.3]} 27. Kh2 {[%clk 0:01:40.8]} 27... gxf5 {[%clk 0:00:13.4]} 28.
Rg1+ {[%clk 0:01:41]} 28... Kh8 {[%clk 0:00:13]} 29. Qxe5+ {[%clk 0:01:41.1]}
29... Qf6 {[%clk 0:00:14.2]} 30. Rxf5 {[%clk 0:01:36]} 30... Qxe5+ {[%clk
0:00:13.3]} 31. Rxe5 {[%clk 0:01:37.4]} 31... Rf6 {[%clk 0:00:13.4]} 32. Rh5
{[%clk 0:01:38.4]} 32... Rc8 {[%clk 0:00:14.3]} 33. Rg2 {[%clk 0:01:39.2]} 33...
Rcc6 {[%clk 0:00:15.4]} 34. Rd5 {[%clk 0:01:33.8]} 34... Rxh6+ {[%clk
0:00:15.7]} 35. Kg1 {[%clk 0:01:35]} 35... Rhg6 {[%clk 0:00:15.7]} 36. Rxg6
{[%clk 0:01:11.4]} 36... Rxg6+ {[%clk 0:00:10.2]} 37. Kf1 {[%clk 0:01:11.8]}
37... Rc6 {[%clk 0:00:11.5]} 38. Rxd4 {[%clk 0:01:08.7]} 38... Rxc2 {[%clk
0:00:12.4]} 39. Rb4 {[%clk 0:01:06.8]} 39... Rc6 {[%clk 0:00:11.2]} 40. Ke2
{[%clk 0:01:08]} 40... Kg7 {[%clk 0:00:11.6]} 41. Ke3 {[%clk 0:01:09.3]} 41...
h5 {[%clk 0:00:10.8]} 42. Ke4 {[%clk 0:01:08.5]} 42... Rg6 {[%clk 0:00:08.9]}
43. Kf5 {[%clk 0:01:06.2]} 43... Rg3 {[%clk 0:00:06.5]} 44. d4 {[%clk
0:01:01.7]} 44... h4 {[%clk 0:00:07.5]} 45. d5 {[%clk 0:00:44.4]} 45... h3
{[%clk 0:00:07.3]} 46. Rh4 {[%clk 0:00:45.6]} 46... Kf7 {[%clk 0:00:06]} 47.
Rh7+ {[%clk 0:00:40.7]} 47... Ke8 {[%clk 0:00:07.2]} 48. d6 {[%clk 0:00:39]}
48... Kd8 {[%clk 0:00:04.8]} 49. Ke6 {[%clk 0:00:39.6]} 49... Re3+ {[%clk
0:00:04.8]} 50. Kd5 {[%clk 0:00:40.9]} 50... Rb3 {[%clk 0:00:05.6]} 51. Kc6
{[%clk 0:00:41.2]} 51... Re3 {[%clk 0:00:02.9]} 52. Rh8+ {[%clk 0:00:39.9]}
52... Re8 {[%clk 0:00:04]} 53. Rxh3 {[%clk 0:00:36.9]} 53... b5 {[%clk
0:00:03.5]} 54. a5 {[%clk 0:00:37.2]} 54... Kc8 {[%clk 0:00:03.6]} 55. d7+
{[%clk 0:00:38.1]} 55... Kd8 {[%clk 0:00:05.5]} 56. dxe8=Q+ {[%clk 0:00:40]} 1-0

[Event "*** Titled Tuesday Blitz"]
[Site "Chess.com"]
[Date "2018.01.02"]
[Round "5"]
[White "maciek_92"]
[Black "Aleksey_Sorokin"]
[Result "1-0"]
[WhiteElo "2558"]
[BlackElo "2755"]
[TimeControl "180+2"]
[EndTime "14:09:51 PST"]
[Termination "maciek_92 won by checkmate"]

1. e4 {[%clk 0:03:00.7]} 1... c6 {[%clk 0:03:00.6]} 2. d4 {[%clk 0:02:57.5]}
2... d5 {[%clk 0:03:02.5]} 3. Nc3 {[%clk 0:02:56.3]} 3... dxe4 {[%clk
0:03:03.4]} 4. Nxe4 {[%clk 0:02:57.1]} 4... Nd7 {[%clk 0:03:05]} 5. Nf3 {[%clk
0:02:55]} 5... Ngf6 {[%clk 0:03:06.1]} 6. Ng3 {[%clk 0:02:51.5]} 6... e6 {[%clk
0:03:04.4]} 7. Bd3 {[%clk 0:02:48.3]} 7... c5 {[%clk 0:03:05.6]} 8. O-O {[%clk
0:02:40.4]} 8... cxd4 {[%clk 0:03:04.9]} 9. Nxd4 {[%clk 0:02:42.3]} 9... Be7
{[%clk 0:03:01.6]} 10. Qe2 {[%clk 0:02:35.1]} 10... O-O {[%clk 0:02:56.1]} 11.
Rd1 {[%clk 0:02:30.2]} 11... Nc5 {[%clk 0:02:40.7]} 12. Bc4 {[%clk 0:02:16.1]}
12... Qc7 {[%clk 0:02:35.9]} 13. Nb5 {[%clk 0:02:15]} 13... Qc6 {[%clk 0:02:35]}
14. Bg5 {[%clk 0:02:06.8]} 14... a6 {[%clk 0:02:17.3]} 15. Nd4 {[%clk
0:02:03.8]} 15... Qc7 {[%clk 0:02:18.4]} 16. a4 {[%clk 0:01:59.5]} 16... h6
{[%clk 0:01:53.5]} 17. Be3 {[%clk 0:01:48]} 17... b6 {[%clk 0:01:42.4]} 18. Nh5
{[%clk 0:01:12.8]} 18... Nxh5 {[%clk 0:01:32.2]} 19. Qxh5 {[%clk 0:01:14.7]}
19... Ne4 {[%clk 0:01:33.4]} 20. Bd3 {[%clk 0:01:11.6]} 20... Nf6 {[%clk
0:01:33.3]} 21. Qf3 {[%clk 0:00:42.1]} 21... Bb7 {[%clk 0:01:31.3]} 22. Qh3
{[%clk 0:00:42.9]} 22... Qe5 {[%clk 0:01:22.9]} 23. Re1 {[%clk 0:00:37.8]} 23...
Qh5 {[%clk 0:01:20.7]} 24. Qxh5 {[%clk 0:00:32]} 24... Nxh5 {[%clk 0:01:22.6]}
25. Nb3 {[%clk 0:00:32]} 25... Bd8 {[%clk 0:01:19.1]} 26. a5 {[%clk 0:00:32]}
26... b5 {[%clk 0:01:15.3]} 27. c4 {[%clk 0:00:27.2]} 27... bxc4 {[%clk
0:01:05.8]} 28. Bxc4 {[%clk 0:00:29.1]} 28... Be7 {[%clk 0:01:02.5]} 29. Nc5
{[%clk 0:00:28.5]} 29... Bxc5 {[%clk 0:00:57.7]} 30. Bxc5 {[%clk 0:00:30.4]}
30... Rfc8 {[%clk 0:00:59.4]} 31. b4 {[%clk 0:00:31.6]} 31... Nf6 {[%clk
0:01:00.6]} 32. Rec1 {[%clk 0:00:25.6]} 32... Bd5 {[%clk 0:00:58.2]} 33. Be2
{[%clk 0:00:22.3]} 33... Ne4 {[%clk 0:00:56.9]} 34. Bd4 {[%clk 0:00:23.3]} 34...
Rcb8 {[%clk 0:00:54.7]} 35. Rab1 {[%clk 0:00:20.1]} 35... Nd2 {[%clk 0:00:55.2]}
36. Rb2 {[%clk 0:00:17.4]} 36... Nb3 {[%clk 0:00:56.3]} 37. Rd1 {[%clk
0:00:15.8]} 37... Rxb4 {[%clk 0:00:54.6]} 38. Bb6 {[%clk 0:00:16]} 38... g5
{[%clk 0:00:34.7]} 39. f3 {[%clk 0:00:17.3]} 39... Kg7 {[%clk 0:00:23.5]} 40.
Rdb1 {[%clk 0:00:14]} 40... Nd4 {[%clk 0:00:18.9]} 41. Rxb4 {[%clk 0:00:11.6]}
41... Nxe2+ {[%clk 0:00:20.3]} 42. Kf2 {[%clk 0:00:13.2]} 42... Nc3 {[%clk
0:00:21.5]} 43. Bd4+ {[%clk 0:00:13.6]} 43... Kg6 {[%clk 0:00:21.5]} 44. Bxc3
{[%clk 0:00:15.5]} 44... Rc8 {[%clk 0:00:22.7]} 45. Bd2 {[%clk 0:00:10.6]} 45...
Rc2 {[%clk 0:00:23.3]} 46. Ke1 {[%clk 0:00:11.3]} 46... Ra2 {[%clk 0:00:24.2]}
47. Rb8 {[%clk 0:00:11.6]} 47... Bc4 {[%clk 0:00:25.1]} 48. Rc8 {[%clk 0:00:11]}
48... Bd3 {[%clk 0:00:26]} 49. Rbc1 {[%clk 0:00:10]} 49... Kf6 {[%clk 0:00:27]}
50. Rd8 {[%clk 0:00:11.1]} 50... Bb5 {[%clk 0:00:28]} 51. g4 {[%clk 0:00:10.9]}
51... Ke5 {[%clk 0:00:28.6]} 52. Rdc8 {[%clk 0:00:08.8]} 52... Kd4 {[%clk
0:00:29.4]} 53. R8c2 {[%clk 0:00:09.3]} 53... Ra3 {[%clk 0:00:29.9]} 54. Kf2
{[%clk 0:00:10.2]} 54... Rd3 {[%clk 0:00:30.2]} 55. Bc3+ {[%clk 0:00:10.1]}
55... Kc4 {[%clk 0:00:29.1]} 56. Bg7+ {[%clk 0:00:07.8]} 56... Kd5 {[%clk
0:00:29.1]} 57. Bxh6 {[%clk 0:00:07.8]} 57... f6 {[%clk 0:00:30.5]} 58. Bg7
{[%clk 0:00:08.5]} 58... f5 {[%clk 0:00:31.8]} 59. gxf5 {[%clk 0:00:07.9]} 59...
exf5 {[%clk 0:00:33]} 60. Bc3 {[%clk 0:00:09.4]} 60... Kc4 {[%clk 0:00:32.1]}
61. Bd2+ {[%clk 0:00:10.1]} 61... Kd5 {[%clk 0:00:31.5]} 62. Bxg5 {[%clk
0:00:11.6]} 62... Ke6 {[%clk 0:00:32.5]} 63. Re1+ {[%clk 0:00:12.3]} 63... Kf7
{[%clk 0:00:33.4]} 64. h4 {[%clk 0:00:13.2]} 64... Ra3 {[%clk 0:00:33.1]} 65.
Re3 {[%clk 0:00:11.9]} 65... Rxa5 {[%clk 0:00:34.1]} 66. h5 {[%clk 0:00:12.2]}
66... f4 {[%clk 0:00:35.6]} 67. Rc7+ {[%clk 0:00:12.5]} 67... Kf8 {[%clk
0:00:34.9]} 68. Bxf4 {[%clk 0:00:12.7]} 68... Ra1 {[%clk 0:00:35.7]} 69. Kg3
{[%clk 0:00:13.4]} 69... Rg1+ {[%clk 0:00:36.7]} 70. Kh2 {[%clk 0:00:13]} 70...
Rg8 {[%clk 0:00:36.6]} 71. Bd6# {[%clk 0:00:12.6]} 1-0

[Event "*** Titled Tuesday Blitz"]
[Site "Chess.com"]
[Date "2018.01.02"]
[Round "5"]
[White "pandamaster3000"]
[Black "DiogenesSinopeus"]
[Result "1-0"]
[WhiteElo "2274"]
[BlackElo "2388"]
[TimeControl "180+2"]
[EndTime "14:10:46 PST"]
[Termination "pandamaster3000 won by resignation"]

1. e4 {[%clk 0:03:01.9]} 1... e5 {[%clk 0:03:00.8]} 2. Nf3 {[%clk 0:03:02]} 2...
Nc6 {[%clk 0:03:02.2]} 3. Bb5 {[%clk 0:03:03.3]} 3... a6 {[%clk 0:03:03.4]} 4.
Ba4 {[%clk 0:03:04.6]} 4... d6 {[%clk 0:03:05.3]} 5. O-O {[%clk 0:03:04.2]} 5...
Bg4 {[%clk 0:03:06.3]} 6. c3 {[%clk 0:03:03.4]} 6... Qf6 {[%clk 0:03:07]} 7. d3
{[%clk 0:02:58.7]} 7... Ne7 {[%clk 0:03:07.6]} 8. Nbd2 {[%clk 0:02:36.6]} 8...
g5 {[%clk 0:03:08.7]} 9. Re1 {[%clk 0:02:35.3]} 9... h5 {[%clk 0:03:05.6]} 10.
Nf1 {[%clk 0:02:28]} 10... Bxf3 {[%clk 0:03:04.1]} 11. Qxf3 {[%clk 0:02:28.5]}
11... Qxf3 {[%clk 0:03:04.8]} 12. gxf3 {[%clk 0:02:30.4]} 12... Bh6 {[%clk
0:03:03]} 13. Ne3 {[%clk 0:02:31]} 13... O-O-O {[%clk 0:02:42.1]} 14. Bb3 {[%clk
0:02:23.9]} 14... Rdf8 {[%clk 0:02:37.3]} 15. Bd2 {[%clk 0:02:18.2]} 15... Kb8
{[%clk 0:02:36.8]} 16. Rad1 {[%clk 0:02:13]} 16... f5 {[%clk 0:02:37.2]} 17. Bc1
{[%clk 0:02:09.6]} 17... f4 {[%clk 0:02:28.2]} 18. Nd5 {[%clk 0:02:08.8]} 18...
Ng6 {[%clk 0:02:24]} 19. d4 {[%clk 0:02:05.2]} 19... Nh4 {[%clk 0:02:24.6]} 20.
Rd3 {[%clk 0:02:05.2]} 20... g4 {[%clk 0:02:23.2]} 21. fxg4 {[%clk 0:02:02.5]}
21... hxg4 {[%clk 0:02:24.4]} 22. Kf1 {[%clk 0:01:51.1]} 22... Nf3 {[%clk
0:02:21.9]} 23. Red1 {[%clk 0:01:50.6]} 23... Nxh2+ {[%clk 0:02:22.7]} 24. Kg2
{[%clk 0:01:48.9]} 24... Nf3 {[%clk 0:02:15.7]} 25. Ba4 {[%clk 0:01:17.7]} 25...
Bg5 {[%clk 0:02:10.7]} 26. Rxf3 {[%clk 0:01:12.5]} 26... gxf3+ {[%clk
0:02:11.7]} 27. Kxf3 {[%clk 0:01:14.4]} 27... Rh3+ {[%clk 0:02:02.5]} 28. Kg4
{[%clk 0:01:14.3]} 28... Rh2 {[%clk 0:01:48.4]} 29. Kf3 {[%clk 0:00:47.9]} 29...
Rg8 {[%clk 0:01:43.2]} 30. Rg1 {[%clk 0:00:47.1]} 30... Rhh8 {[%clk 0:01:31.7]}
31. Rd1 {[%clk 0:00:39.6]} 31... Bd8 {[%clk 0:01:31.3]} 32. Bxc6 {[%clk
0:00:26.9]} 32... bxc6 {[%clk 0:01:32.2]} 33. Nb4 {[%clk 0:00:28.8]} 33... Rh3+
{[%clk 0:01:32]} 34. Ke2 {[%clk 0:00:28.2]} 34... Kb7 {[%clk 0:01:28.6]} 35.
dxe5 {[%clk 0:00:23.5]} 35... dxe5 {[%clk 0:01:29.6]} 36. Nd3 {[%clk 0:00:24.5]}
36... f3+ {[%clk 0:01:22.8]} 37. Kd2 {[%clk 0:00:25.5]} 37... Bg5+ {[%clk
0:01:23.8]} 38. Kc2 {[%clk 0:00:26.9]} 38... Bxc1 {[%clk 0:01:24.7]} 39. Kxc1
{[%clk 0:00:27]} 39... Rg2 {[%clk 0:01:20.3]} 40. Rd2 {[%clk 0:00:21.2]} 40...
Rh1+ {[%clk 0:01:16.8]} 41. Kc2 {[%clk 0:00:21.9]} 41... Rg5 {[%clk 0:00:56.9]}
42. Nc5+ {[%clk 0:00:21]} 42... Ka7 {[%clk 0:00:50.8]} 43. Nd3 {[%clk 0:00:11]}
43... Rh4 {[%clk 0:00:50.1]} 44. Nc5 {[%clk 0:00:10.4]} 44... Rh2 {[%clk
0:00:45.9]} 45. Kd3 {[%clk 0:00:11.2]} 45... Rh4 {[%clk 0:00:26.6]} 46. Ke3
{[%clk 0:00:11.9]} 46... Rgg4 {[%clk 0:00:28.2]} 47. Kxf3 {[%clk 0:00:11.6]}
47... Kb6 {[%clk 0:00:29.2]} 48. b4 {[%clk 0:00:11.2]} 48... Rf4+ {[%clk
0:00:29.7]} 49. Ke3 {[%clk 0:00:11.9]} 49... Rh3+ {[%clk 0:00:30.4]} 50. Ke2
{[%clk 0:00:12.1]} 50... Kb5 {[%clk 0:00:28.2]} 51. a4+ {[%clk 0:00:10]} 51...
Kc4 {[%clk 0:00:29.1]} 52. Nxa6 {[%clk 0:00:07.4]} 52... Rh2 {[%clk 0:00:23.7]}
53. Ke3 {[%clk 0:00:07.1]} 53... Rh3+ {[%clk 0:00:22.1]} 54. Ke2 {[%clk
0:00:08.4]} 54... Rxe4+ {[%clk 0:00:21.8]} 55. Kf1 {[%clk 0:00:08.2]} 55... Kxc3
{[%clk 0:00:22.3]} 56. Ra2 {[%clk 0:00:08.2]} 56... Kb3 {[%clk 0:00:21.5]} 57.
Rd2 {[%clk 0:00:08.1]} 57... Kc3 {[%clk 0:00:22.9]} 58. Ra2 {[%clk 0:00:08.7]}
58... Rh1+ {[%clk 0:00:23.3]} 59. Kg2 {[%clk 0:00:09.5]} 59... Rb1 {[%clk
0:00:21.4]} 60. Nxc7 {[%clk 0:00:08.2]} 60... Kb3 {[%clk 0:00:21.6]} 61. Rd2
{[%clk 0:00:07.9]} 61... Kxa4 {[%clk 0:00:21.7]} 62. Rd6 {[%clk 0:00:04.9]}
62... Rc1 {[%clk 0:00:21.2]} 63. Ne6 {[%clk 0:00:04.4]} 63... Kxb4 {[%clk
0:00:20.9]} 64. Rd7 {[%clk 0:00:05.1]} 64... Ree1 {[%clk 0:00:21]} 65. Rb7+
{[%clk 0:00:05.9]} 65... Kc4 {[%clk 0:00:21.6]} 66. Rc7 {[%clk 0:00:06.8]} 66...
Kd5 {[%clk 0:00:22.1]} 67. Ng5 {[%clk 0:00:06.8]} 67... e4 {[%clk 0:00:21.9]}
68. Rd7+ {[%clk 0:00:07]} 68... Kc4 {[%clk 0:00:21]} 69. Kg3 {[%clk 0:00:08.4]}
69... c5 {[%clk 0:00:21.7]} 70. Rc7 {[%clk 0:00:09.5]} 70... Kd3 {[%clk
0:00:19.3]} 71. Rd7+ {[%clk 0:00:09.9]} 71... Kc3 {[%clk 0:00:20.4]} 72. Kf4
{[%clk 0:00:11.4]} 72... Rcd1 {[%clk 0:00:16.1]} 73. Nxe4+ {[%clk 0:00:12.3]}
73... Kb4 {[%clk 0:00:14.8]} 74. Rb7+ {[%clk 0:00:11.8]} 74... Kc4 {[%clk
0:00:16.2]} 75. Rc7 {[%clk 0:00:13]} 75... Rd4 {[%clk 0:00:15.5]} 76. Rxc5+
{[%clk 0:00:14.3]} 76... Kb4 {[%clk 0:00:17]} 77. Re5 {[%clk 0:00:15.9]} 77...
Rh1 {[%clk 0:00:14.4]} 78. f3 {[%clk 0:00:17]} 78... Rh4+ {[%clk 0:00:15]} 79.
Ke3 {[%clk 0:00:18.4]} 79... Rc4 {[%clk 0:00:15.2]} 80. Re8 {[%clk 0:00:19.4]}
80... Rh1 {[%clk 0:00:15.3]} 81. Rb8+ {[%clk 0:00:20.4]} 81... Ka3 {[%clk
0:00:15.7]} 82. Ra8+ {[%clk 0:00:21.7]} 82... Kb2 {[%clk 0:00:15.1]} 83. Rb8+
{[%clk 0:00:23.3]} 83... Kc2 {[%clk 0:00:15.9]} 84. Rd8 {[%clk 0:00:24.7]} 84...
Rc7 {[%clk 0:00:14.2]} 85. Rd2+ {[%clk 0:00:25.8]} 85... Kb3 {[%clk 0:00:14.7]}
86. Rd3+ {[%clk 0:00:27.2]} 86... Kc4 {[%clk 0:00:14.9]} 87. Rc3+ {[%clk
0:00:27.8]} 87... Kd5 {[%clk 0:00:14.9]} 88. Rxc7 {[%clk 0:00:29.7]} 1-0